bitfinex/quotes_ETHUSD_20240715
["timestamp","ask_amount","ask_price","bid_price","bid_amount"]
[1721044832746,0.06967898,3346.7,3346.5,5.98819]
[1721044832945,0.62492483,3346.9,3346.5,5.98819]
[1721044833156,1.13449078,3346.8,3346.5,5.98819]
[1721044833472,0.62492483,3346.8,3346.5,5.98819]
[1721044833810,0.62492483,3346.8,3346.5,3.0]
[1721044834400,0.62492483,3346.8,3346.5,5.98818]
[1721044835106,0.06969394,3346.7,3346.5,5.98818]
[1721044835305,0.62492483,3346.8,3346.5,5.98818]
[1721044836005,0.62492483,3346.9,3346.5,5.98818]
[1721044836205,1.13458151,3346.8,3346.5,5.98818]
[1721044836406,0.62492483,3346.8,3346.7,1.094]
[1721044836719,0.62492483,3346.8,3346.5,5.98818]
[1721044836720,0.62492483,3346.8,3346.5,4.094]
[1721044836927,0.62492483,3346.8,3346.5,1.094]
[1721044838255,0.62492483,3346.8,3346.6,0.08057372]
[1721044838256,3.42157278,3346.7,3346.6,0.08057372]
[1721044838462,4.3494021,3346.7,3346.6,0.08057372]
[1721044838754,4.3494021,3346.7,3346.1,1.094]
[1721044838755,2.4837,3346.6,3346.1,1.094]
[1721044838934,0.93814223,3346.3,3346.1,1.094]
[1721044839290,1.44794535,3346.3,3346.2,0.08087771]
[1721044839871,0.50980312,3346.3,3346.2,0.08087771]
[1721044840153,0.50995567,3346.3,3346.2,0.08087771]
[1721044840316,1.13535538,3346.3,3346.2,0.08087771]
[1721044841330,1.4480979,3346.3,3346.2,0.08087771]
[1721044842409,0.50995567,3346.3,3346.2,0.08087771]
[1721044842613,1.13553224,3346.3,3346.2,0.08087771]
[1721044843066,0.50995567,3346.3,3346.2,0.08087771]
[1721044843268,0.5101445,3346.3,3346.2,0.08087771]
[1721044844031,1.44828673,3346.3,3346.2,0.08087771]
[1721044846347,0.93814223,3346.3,3346.2,0.08087771]
[1721044846547,1.44837534,3346.3,3346.2,0.08087771]
[1721044846748,0.93814223,3346.3,3346.2,0.08087771]
[1721044846960,1.4484011,3346.3,3346.2,0.08087771]
[1721044847967,1.13602376,3346.3,3346.2,4.08455748]
[1721044848394,1.25085631,3346.6,3346.3,2.98837]
[1721044848395,0.62576489,3346.5,3346.3,2.98837]
[1721044848575,0.62576489,3346.5,3346.3,4.08237]
[1721044848752,0.62576489,3346.5,3346.4,0.08075429]
[1721044848956,0.62576489,3346.7,3346.4,3.08075429]
[1721044849155,1.25085631,3347.0,3346.4,3.08075429]
[1721044849156,0.62576489,3347.0,3346.8,2.98792]
[1721044849356,1.13577584,3347.0,3346.9,4.094]
[1721044849675,1.13577584,3347.0,3346.9,1.17440126]
[1721044849676,0.51010931,3347.0,3346.9,1.17440126]
[1721044849976,0.93814223,3347.0,3346.9,1.17440126]
[1721044850484,1.44825154,3347.0,3346.9,1.17440126]
[1721044851073,0.93814223,3347.0,3346.9,1.17440126]
[1721044851648,0.51010931,3347.0,3346.9,4.17440126]
[1721044851889,0.93814223,3347.0,3346.9,4.17440126]
[1721044852248,0.93814223,3347.0,3346.9,1.17440126]
[1721044853152,1.44848422,3347.0,3346.9,1.17440126]
[1721044853380,1.44848422,3347.0,3346.9,0.08040126]
[1721044853587,1.24721835,3347.0,3346.9,0.08040126]
[1721044853881,1.449594,3347.0,3346.8,1.094]
[1721044854190,0.93925201,3347.0,3346.9,0.08037132]
[1721044854413,1.37991081,3347.0,3346.9,0.08037132]
[1721044854622,3.80131585,3347.0,3346.9,0.07824383]
[1721044855909,4.99831419,3347.0,3346.9,0.07824383]
[1721044856109,9.00554496,3347.0,3346.9,0.07824383]
[1721044856283,6.53203511,3347.0,3346.2,1.094]
[1721044856485,0.9400289,3346.3,3346.2,1.094]
[1721044856691,3.2797289,3346.3,3346.2,1.094]
[1721044856893,3.7904442,3346.3,3346.2,1.094]
[1721044857218,0.5107153,3346.3,3346.2,1.094]
[1721044857414,0.62668618,3346.3,3346.2,1.094]
[1721044857711,1.06756429,3346.3,3346.2,4.790723]
[1721044857910,1.13740148,3346.3,3346.2,7.790723]
[1721044858128,0.62668618,3346.3,3346.2,7.790723]
[1721044858412,0.5107153,3346.3,3346.2,7.08246]
[1721044858578,0.9400289,3346.3,3346.2,7.08246]
[1721044859440,0.9400289,3346.4,3346.2,7.08246]
[1721044859643,1.13766808,3346.3,3346.2,7.08246]
[1721044859815,0.62670317,3346.3,3346.2,7.08246]
[1721044860008,1.13766808,3346.3,3346.2,7.08246]
[1721044860354,0.62670317,3346.3,3346.2,4.094]
[1721044860571,1.13766808,3346.3,3346.2,4.094]
[1721044860872,0.69659518,3346.3,3346.2,7.08246]
[1721044861071,0.62670317,3346.3,3346.2,7.08246]
[1721044861244,1.06777806,3346.3,3346.2,4.094]
[1721044861431,0.9400289,3346.4,3346.2,4.094]
[1721044861755,3.3082289,3346.3,3346.2,1.094]
[1721044861920,3.61680234,3346.3,3346.2,1.094]
[1721044862132,3.61680234,3346.3,3346.2,1.17227358]
[1721044862460,4.92003676,3346.3,3346.2,1.17227358]
[1721044862816,6.17340863,3346.3,3346.2,1.17227358]
[1721044863407,6.99751849,3346.3,3346.2,1.17227358]
[1721044863622,5.74414662,3346.3,3346.2,1.17227358]
[1721044863824,7.31096851,3346.3,3346.2,1.17227358]
[1721044864313,6.75960017,3346.3,3346.2,0.07827358]
[1721044864548,6.75960017,3346.3,3345.7,1.094]
[1721044864762,1.25352384,3345.9,3345.7,1.094]
[1721044864915,3.8056719,3345.8,3345.7,1.094]
[1721044865252,1.2487507,3345.8,3345.7,1.094]
[1721044865460,1.45113864,3345.8,3345.7,1.094]
[1721044865609,1.38113684,3345.8,3345.7,1.094]
[1721044866411,1.38113684,3345.8,3345.7,7.790109]
[1721044866412,1.13772995,3345.8,3345.7,7.790109]
[1721044866615,0.51119348,3345.8,3345.7,7.779019]
[1721044866924,1.00989614,3345.9,3345.8,2.98882]
[1721044867113,0.93994516,3346.0,3345.9,2.98873]
[1721044867314,1.38092221,3346.0,3345.9,4.08273]
[1721044867538,0.93994516,3346.0,3345.9,4.08273]
[1721044867844,0.93994516,3346.1,3345.9,4.98072637]
[1721044868048,0.51086578,3346.0,3345.9,4.98072637]
[1721044868223,0.06991864,3346.0,3345.9,7.96945637]
[1721044868422,0.62644956,3346.3,3346.1,2.98855]
[1721044868627,0.62644956,3346.3,3346.2,1.094]
[1721044868826,0.62644956,3346.3,3346.2,10.778119]
[1721044869032,0.51072821,3346.3,3346.2,10.778119]
[1721044869225,0.44087148,3346.3,3346.2,10.778119]
[1721044869437,0.62644956,3346.4,3346.3,2.98837]
[1721044869617,1.13714458,3346.4,3346.3,2.98837]
[1721044869953,1.06730419,3346.4,3346.3,3.88636637]
[1721044870252,1.13714458,3346.4,3346.3,3.88636637]
[1721044870448,1.4503973,3346.4,3346.3,2.98837]
[1721044871548,0.93970228,3346.4,3346.3,2.98837]
[1721044871751,0.44094222,3346.4,3346.3,2.98837]
[1721044871927,0.62646947,3346.4,3346.3,2.98837]
[1721044872255,1.06741169,3346.4,3346.3,2.98837]
[1721044872456,1.06741169,3346.4,3346.3,6.995453]
[1721044872846,0.06988239,3346.4,3346.3,9.983823]
[1721044873023,0.62646947,3346.6,3346.5,5.97638]
[1721044873225,1.3805706,3346.6,3346.5,8.97638]
[1721044873419,0.93970228,3346.6,3346.5,8.97638]
[1721044874160,0.93970228,3346.7,3346.5,5.98819]
[1721044874321,0.93970228,3346.7,3346.6,4.0821]
[1721044874933,1.45041876,3346.7,3346.6,4.0821]
[1721044875187,1.38058807,3346.7,3346.6,4.0821]
[1721044875335,0.93970228,3346.7,3346.6,4.0821]
[1721044876174,1.45041876,3346.7,3346.6,4.0821]
[1721044876348,1.45041876,3346.7,3346.6,4.68021237]
[1721044877293,0.93970228,3346.7,3346.6,4.68021237]
[1721044877642,0.93970228,3346.8,3346.7,2.98801]
[1721044877848,1.24801289,3346.8,3346.7,4.08201]
[1721044878070,1.25293638,3346.9,3346.8,2.98792]
[1721044878387,2.55591333,3346.9,3346.8,2.98792]
[1721044878586,3.80393232,3346.9,3346.8,2.98792]
[1721044880406,2.55099594,3346.9,3346.8,2.98792]
[1721044880549,3.80393232,3346.9,3346.8,2.98792]
[1721044880750,3.80398091,3346.9,3346.8,2.98792]
[1721044881584,2.55102284,3346.9,3346.7,4.08196]
[1721044881798,2.55102284,3346.8,3346.7,4.08196]
[1721044881979,3.80398224,3346.8,3346.7,4.08196]
[1721044882480,2.55102284,3346.8,3346.7,4.08196]
[1721044882889,3.80398224,3346.8,3346.7,4.08196]
[1721044883186,3.80398224,3346.8,3346.7,4.15987479]
[1721044883952,1.99023965,3346.8,3346.7,4.15987479]
[1721044884150,2.55598538,3346.8,3346.7,4.15987479]
[1721044884397,1.99023218,3346.8,3346.7,4.15987479]
[1721044884644,2.55598523,3346.8,3346.7,4.15987479]
[1721044884790,3.80400509,3346.8,3346.7,4.15987479]
[1721044886813,2.55105316,3346.8,3346.7,4.15987479]
[1721044887129,1.45048078,3346.8,3346.7,4.15987479]
[1721044887334,1.45045545,3346.8,3346.7,7.15987479]
[1721044890143,5.48383981,3346.8,3346.7,3.07791479]
[1721044890344,4.8657708,3346.8,3346.7,0.07791479]
[1721044890569,6.43136699,3346.8,3346.7,0.07791479]
[1721044890748,2.286,3346.7,3346.0,2.98858]
[1721044891056,3.53935782,3346.2,3346.1,1.17234153]
[1721044891261,4.83742834,3346.2,3346.1,1.17234153]
[1721044891605,4.83752934,3346.2,3346.1,1.17234153]
[1721044891845,3.53426637,3346.2,3346.1,1.17234153]
[1721044892006,2.79695732,3346.2,3346.1,1.17234153]
[1721044892356,3.5345327,3346.2,3346.1,1.17234153]
[1721044892645,5.47327298,3346.2,3346.1,0.07834153]
[1721044892854,2.2717,3346.1,3345.8,1.094]
[1721044893162,3.53006461,3345.9,3345.8,1.094]
[1721044893312,3.53006461,3345.9,3345.5,2.98903]
[1721044893313,6.08187881,3345.9,3345.5,2.98903]
[1721044893684,0.94008298,3345.7,3345.5,2.98903]
[1721044893961,1.45128024,3345.7,3345.6,1.094]
[1721044894128,2.2765,3345.9,3345.6,1.094]
[1721044894304,1.45123309,3345.8,3345.6,2.98897]
[1721044894510,0.51117033,3345.7,3345.6,2.98897]
[1721044894709,0.94006276,3345.9,3345.8,2.98882]
[1721044894955,1.4510382,3345.9,3345.8,4.08282]
[1721044895449,0.51097544,3345.9,3345.8,4.08282]
[1721044895653,0.44102403,3345.9,3345.8,4.08282]
[1721044896310,1.38108679,3345.9,3345.8,4.08282]
[1721044896514,1.4510382,3345.9,3345.8,4.08282]
[1721044896747,0.94006276,3345.9,3345.8,4.08282]
[1721044896948,0.94006276,3346.0,3345.9,2.98873]
[1721044897167,0.94006276,3346.0,3345.9,4.08273]
[1721044897464,1.38103168,3346.0,3345.9,4.08273]
[1721044897758,1.24821901,3346.0,3345.9,4.08273]
[1721044897958,1.45061693,3346.0,3345.9,4.08273]
[1721044898460,1.4505866,3346.0,3345.9,3.06725283]
[1721044898661,0.51086899,3346.0,3345.9,3.06725283]
[1721044899226,0.6264499,3346.0,3345.9,6.06725283]
[1721044899428,1.06739472,3346.0,3345.9,6.06725283]
[1721044899633,1.13731889,3346.0,3345.9,6.06725283]
[1721044899960,0.51086899,3346.0,3345.9,6.06725283]
[1721044900184,0.93971761,3346.1,3345.9,6.06725283]
[1721044900333,3.76523037,3346.0,3345.9,6.06725283]
[1721044900533,3.76523037,3346.0,3345.9,3.07852283]
[1721044900726,3.76523037,3346.0,3345.9,0.07852283]
[1721044901875,3.76529911,3346.0,3345.9,0.07852283]
[1721044902180,2.82551276,3346.0,3345.9,0.07852283]
[1721044902467,5.43078205,3346.0,3345.9,0.07852283]
[1721044902669,6.68419907,3346.0,3345.9,0.07852283]
[1721044902962,5.43078205,3346.0,3345.9,0.07852283]
[1721044903123,5.43078205,3346.0,3345.7,3.0]
[1721044903334,5.43078205,3346.0,3345.9,0.07854166]
[1721044903335,2.95383617,3346.0,3345.9,0.07854166]
[1721044903530,2.95383617,3346.0,3345.6,3.0]
[1721044903531,2.2608,3345.9,3345.6,3.0]
[1721044903766,0.93971765,3345.7,3345.6,3.0]
[1721044904068,1.45071491,3345.7,3345.6,3.0]
[1721044904580,1.38072266,3345.7,3345.6,3.0]
[1721044904780,0.51099726,3345.7,3345.6,3.0]
[1721044905079,0.44100501,3345.7,3345.6,3.0]
[1721044905458,0.62630667,3345.7,3345.6,3.0]
[1721044905650,1.06731168,3345.7,3345.6,5.989]
[1721044906297,1.13730393,3345.7,3345.6,5.989]
[1721044906587,1.06731168,3345.7,3345.6,5.989]
[1721044906788,1.06715012,3345.7,3345.6,5.989]
[1721044907157,0.62630667,3345.7,3345.6,5.989]
[1721044907360,1.06716485,3345.7,3345.6,5.989]
[1721044908053,1.13711976,3345.7,3345.6,5.989]
[1721044908892,0.51081309,3345.7,3345.6,5.989]
[1721044909272,0.44085818,3345.7,3345.6,5.989]
[1721044909915,0.51066952,3345.7,3345.6,5.989]
[1721044910196,0.44074452,3345.7,3345.6,5.989]
[1721044910985,0.69622936,3345.8,3345.7,2.98891]
[1721044911210,1.13695035,3345.8,3345.7,5.98891]
[1721044912271,1.13695035,3345.8,3345.7,3.0]
[1721044912596,1.13695035,3345.8,3345.6,5.98897]
[1721044912772,0.51064368,3345.7,3345.6,5.98897]
[1721044912972,0.4407237,3345.7,3345.6,5.98897]
[1721044913288,0.44074356,3345.7,3345.6,6.06773773]
[1721044915172,0.69623376,3345.8,3345.6,6.06773773]
[1721044915371,0.4406909,3345.7,3345.6,6.06773773]
[1721044916606,0.07472276,3346.0,3345.6,6.06773773]
[1721044916818,0.6260419,3345.8,3345.7,2.98891]
[1721044917104,0.6260419,3345.8,3345.7,6.06760506]
[1721044917323,1.06672128,3345.8,3345.7,6.06760506]
[1721044917474,1.1366368,3345.8,3345.7,6.06760506]
[1721044917797,1.06672128,3345.8,3345.7,6.06760506]
[1721044918009,2.3919,3345.8,3345.7,6.06760506]
[1721044918331,2.9024949,3345.8,3345.7,6.06760506]
[1721044918465,3.84155775,3345.8,3345.7,6.06760506]
[1721044918672,2.9024949,3345.8,3345.7,6.06760506]
[1721044919304,3.84155775,3345.8,3345.7,3.07869506]
[1721044919487,4.35839417,3345.8,3345.7,3.07869506]
[1721044920019,3.84162404,3345.8,3345.7,3.07869506]
[1721044920392,3.84166118,3345.8,3345.7,3.07869506]
[1721044920816,3.84172717,3345.8,3345.7,3.07869506]
[1721044921093,3.63950948,3345.8,3345.7,3.07869506]
[1721044921733,3.84173828,3345.8,3345.7,3.07869506]
[1721044922039,3.84173828,3345.8,3345.7,4.17369506]
[1721044922435,3.84171459,3345.8,3345.7,4.17369506]
[1721044923151,3.84171459,3345.8,3345.7,1.17369506]
[1721044924167,5.56500985,3345.8,3345.7,0.07869506]
[1721044924349,4.94308361,3345.8,3345.7,0.07869506]
[1721044924647,2.3048,3345.7,3345.3,7.41]
[1721044924830,0.93933896,3345.5,3345.3,7.41]
[1721044925037,2.3048,3345.4,3345.3,7.41]
[1721044925233,2.81547464,3345.4,3345.0,4.08453]
[1721044925532,1.1369077,3345.3,3345.2,1.095]
[1721044926236,2.01336346,3345.3,3345.1,3.0]
[1721044926421,2.01336346,3345.3,3344.6,7.41]
[1721044926422,2.4994,3345.1,3344.6,7.41]
[1721044926741,2.4994,3345.1,3344.5,2.98995]
[1721044926742,0.62629931,3344.8,3344.5,2.98995]
[1721044926957,1.13697395,3344.8,3344.6,2.98989]
[1721044927453,0.06994028,3344.7,3344.6,2.98989]
[1721044927841,3.12569931,3344.9,3344.6,5.98989]
[1721044928013,0.51096428,3344.8,3344.7,3.0]
[1721044928217,0.07006414,3344.8,3344.7,6.06926333]
[1721044928521,2.4994,3344.9,3344.8,2.98971]
[1721044928924,3.01028558,3344.9,3344.8,3.06909995]
[1721044929813,3.63643192,3344.9,3344.8,3.06909995]
[1721044930509,3.63643192,3344.9,3344.7,3.0]
[1721044930713,0.51088558,3344.8,3344.7,3.0]
[1721044931924,3.12554634,3344.9,3344.7,3.0]
[1721044932133,0.51085666,3344.8,3344.7,3.0]
[1721044932327,3.12546841,3344.9,3344.7,3.0]
[1721044932636,0.07005304,3344.8,3344.7,3.0]
[1721044933408,0.51088104,3344.8,3344.7,3.0]
[1721044935172,1.13701907,3344.8,3344.7,3.0]
[1721044937058,0.51107103,3344.8,3344.7,5.9898]
[1721044937283,0.07006688,3344.8,3344.7,5.9898]
[1721044937463,0.62606841,3345.0,3344.9,2.98962]
[1721044937662,1.45009358,3345.1,3344.9,2.98962]
[1721044937908,1.45009358,3345.1,3345.0,2.98953]
[1721044938058,0.51099097,3345.1,3345.0,2.98953]
[1721044938403,1.1372971,3345.1,3345.0,2.98953]
[1721044938694,1.4500784,3345.1,3345.0,2.98953]
[1721044939103,0.51097579,3345.1,3345.0,2.98953]
[1721044939603,1.13727987,3345.1,3345.0,6.68629337]
[1721044939813,0.62630408,3345.3,3345.2,2.98935]
[1721044939974,0.93910261,3345.4,3345.3,2.98926]
[1721044939975,1.44993102,3345.4,3345.3,2.98926]
[1721044940296,0.62624646,3345.6,3345.5,2.98908]
[1721044940460,0.93910261,3345.8,3345.6,2.989]
[1721044940659,0.51072069,3345.7,3345.6,2.989]
[1721044940936,1.00903667,3345.8,3345.6,2.989]
[1721044941110,1.13690622,3345.7,3345.6,2.989]
[1721044941402,0.62621482,3345.7,3345.6,2.989]
[1721044941559,2.4146,3346.1,3345.6,2.989]
[1721044941757,0.6261988,3345.7,3345.6,2.989]
[1721044941958,1.1369192,3345.7,3345.6,2.989]
[1721044942229,0.93929821,3345.8,3345.6,2.989]
[1721044942511,0.93929821,3345.8,3345.4,2.98914]
[1721044942512,1.45000444,3345.7,3345.4,2.98911]
[1721044942812,1.13697465,3345.6,3345.5,2.98908]
[1721044943009,1.13698024,3345.6,3345.5,2.98908]
[1721044943239,0.51070623,3345.6,3345.5,3.06548556]
[1721044943376,0.62627401,3345.7,3345.6,2.989]
[1721044943577,0.62627401,3345.7,3345.6,3.06533222]
[1721044944078,1.1370698,3345.7,3345.6,3.06533222]
[1721044944395,0.51079579,3345.7,3345.6,3.06533222]
[1721044944737,0.93929821,3345.8,3345.7,5.97782]
[1721044944931,0.6262286,3346.0,3345.9,2.98873]
[1721044945110,0.5106813,3346.0,3345.9,2.98873]
[1721044945308,1.13701129,3346.0,3345.9,3.06482807]
[1721044945647,1.13697758,3346.0,3345.9,3.06482807]
[1721044946432,0.51073154,3346.0,3345.9,3.06482807]
[1721044947223,1.45007444,3346.0,3345.9,3.06482807]
[1721044947432,0.51073154,3346.0,3345.9,3.06482807]
[1721044947739,3.3708447,3346.0,3345.9,0.07609807]
[1721044947944,5.96151838,3346.0,3345.9,0.07609807]
[1721044948145,2.3484,3345.9,3345.3,2.98926]
[1721044948318,0.62641477,3345.4,3345.3,2.98926]
[1721044948516,1.06735042,3345.4,3345.3,2.98926]
[1721044948716,1.13734187,3345.4,3345.3,2.98926]
[1721044949038,0.5109271,3345.4,3345.3,2.98926]
[1721044949239,0.93962216,3345.5,3345.3,5.98926]
[1721044949444,0.44093565,3345.4,3345.3,5.98926]
[1721044949619,0.5109271,3345.4,3345.3,5.98926]
[1721044949846,0.93962216,3345.5,3345.3,5.98926]
[1721044950153,1.45054926,3345.5,3345.3,5.98926]
[1721044950345,0.5109271,3345.4,3345.3,5.98926]
[1721044950534,3.36282216,3345.4,3345.3,3.0]
[1721044950729,4.61674561,3345.4,3344.8,2.98971]
[1721044950936,0.62645621,3345.2,3344.9,2.98961]
[1721044951134,0.62645621,3345.1,3344.9,2.98961]
[1721044951354,1.13757673,3345.0,3344.9,2.98961]
[1721044951546,0.62645621,3345.2,3345.0,2.98953]
[1721044951756,0.44102146,3345.1,3345.0,5.97906]
[1721044951952,0.44102146,3345.1,3345.0,8.97906]
[1721044952157,0.62645621,3345.2,3345.1,2.98944]
[1721044952366,1.06745689,3345.2,3345.1,2.98944]
[1721044953478,0.62645621,3345.2,3345.1,5.97888]
[1721044953671,0.69649259,3345.3,3345.2,5.9787]
[1721044953868,0.62645621,3345.3,3345.2,5.9787]
[1721044954170,1.45062338,3345.3,3345.2,2.98935]
[1721044954339,3.55572605,3345.3,3345.2,2.98935]
[1721044954741,3.7580812,3345.3,3345.2,2.98935]
[1721044955771,4.85941257,3345.3,3345.1,2.98944]
[1721044955982,1.45083377,3345.2,3345.1,2.98944]
[1721044956536,1.45083377,3345.2,3345.0,5.98952]
[1721044957438,0.51108985,3345.1,3345.0,5.98952]
[1721044957665,1.45087253,3345.2,3345.0,5.98952]
[1721044957942,1.45088231,3345.1,3345.0,5.98952]
[1721044958144,0.51109963,3345.1,3345.0,3.0]
[1721044958377,0.93978268,3345.1,3345.0,3.0743417]
[1721044958748,1.45092518,3345.1,3345.0,3.0743417]
[1721044959050,0.93978268,3345.1,3345.0,3.0743417]
[1721044959267,1.45092518,3345.1,3345.0,3.0743417]
[1721044959801,0.93978268,3345.1,3345.0,3.0743417]
[1721044960103,0.93978268,3345.1,3345.0,6.0638717]
[1721044960104,1.45092518,3345.1,3345.0,6.0638717]
[1721044960290,0.93978268,3345.1,3345.0,6.0638717]
[1721044960493,1.45092518,3345.1,3345.0,6.0638717]
[1721044960697,1.45094558,3345.1,3345.0,6.0638717]
[1721044961497,0.5111629,3345.1,3345.0,6.0638717]
[1721044961801,0.62661209,3345.1,3345.0,9.95874287]
[1721044962101,0.62661209,3345.2,3345.1,5.97888]
[1721044962309,1.06762587,3345.2,3345.1,5.97888]
[1721044962500,0.62661209,3345.2,3345.1,6.0531839]
[1721044962801,1.13753027,3345.2,3345.1,6.0531839]
[1721044963769,0.62661209,3345.2,3345.1,6.0531839]
[1721044964007,0.62661209,3345.2,3345.1,6.7530381]
[1721044965822,1.13753027,3345.2,3345.1,6.7530381]
[1721044965980,0.51091818,3345.2,3345.1,12.7424781]
[1721044966172,0.62661209,3345.5,3345.2,2.98935]
[1721044966374,0.62661209,3345.5,3345.4,5.97834]
[1721044966579,0.62661209,3345.6,3345.5,5.97816]
[1721044966788,0.62661209,3345.6,3345.5,6.05217047]
[1721044966989,0.62661209,3345.6,3345.5,9.05217047]
[1721044967317,3.6894738,3346.0,3345.8,2.98882]
[1721044967528,1.24819516,3345.9,3345.8,2.98882]
[1721044967878,1.45070316,3345.9,3345.8,2.98882]
[1721044968233,1.45070316,3345.9,3345.8,5.97764]
[1721044969011,0.51080607,3345.9,3345.8,5.97764]
[1721044969179,1.45070316,3345.9,3345.8,5.97764]
[1721044970394,1.44421304,3345.9,3345.8,5.97764]
[1721044970917,2.4362,3346.0,3345.9,2.98873]
[1721044971123,3.88016243,3346.0,3345.9,2.98873]
[1721044971341,1.44396243,3346.0,3345.9,3.586485]
[1721044971481,0.62633755,3346.2,3345.9,6.586485]
[1721044971680,3.27026262,3346.4,3345.9,6.586485]
[1721044971681,0.62633755,3346.3,3346.2,5.97692]
[1721044971990,0.50405193,3346.3,3346.2,8.97692]
[1721044972414,1.13018512,3346.3,3346.2,8.97692]
[1721044973092,1.13018512,3346.3,3346.2,9.04608656]
[1721044973418,0.62613319,3346.3,3346.2,9.04608656]
[1721044973620,0.5038818,3346.3,3346.2,9.04608656]
[1721044974880,1.12985487,3346.3,3346.2,9.04608656]
[1721044975281,1.12979323,3346.3,3346.2,9.04608656]
[1721044975620,1.12979323,3346.3,3346.2,6.05762656]
[1721044975783,0.5038818,3346.3,3346.2,6.05762656]
[1721044976318,1.1298021,3346.3,3346.2,6.05762656]
[1721044976519,0.06608025,3346.3,3346.2,9.04608656]
[1721044976722,2.9565203,3346.4,3346.3,2.98837]
[1721044976886,3.46020732,3346.4,3346.3,2.98837]
[1721044977086,3.46020732,3346.4,3346.3,3.05746325]
[1721044977614,1.12960732,3346.4,3346.3,6.04583325]
[1721044977833,2.8779203,3346.7,3346.6,2.9881]
[1721044977982,3.38128663,3346.7,3346.6,3.05697333]
[1721044978184,3.38128663,3346.7,3346.6,6.04507333]
[1721044978584,2.75556259,3346.7,3346.6,6.04507333]
[1721044978789,3.38119452,3346.7,3346.6,6.04507333]
[1721044979824,2.87763193,3346.7,3346.6,6.04507333]
[1721044980119,3.3810104,3346.7,3346.6,6.04507333]
[1721044980706,2.75537847,3346.7,3346.6,6.04507333]
[1721044981089,3.3809697,3346.7,3346.6,6.04507333]
[1721044981395,0.62559123,3346.9,3346.8,2.98792]
[1721044981721,0.06596509,3346.9,3346.8,6.05664674]
[1721044981886,3.06175937,3347.0,3346.9,5.97566]
[1721044982082,2.93938971,3347.0,3346.9,5.97566]
[1721044982294,2.93939556,3347.0,3346.9,6.04428351]
[1721044982495,2.50211299,3347.0,3346.9,6.04428351]
[1721044982694,2.4362,3347.0,3346.9,6.04428351]
[1721044982922,2.50209411,3347.0,3346.9,6.04428351]
[1721044983935,0.06589411,3347.0,3346.9,6.04428351]
[1721044984110,0.62522558,3347.2,3347.1,2.98766]
[1721044984310,0.06587522,3347.2,3347.1,2.98766]
[1721044984511,0.06587522,3347.2,3347.1,3.05613695]
[1721044985126,0.62522558,3347.5,3347.3,2.9874]
[1721044985314,1.12794987,3347.5,3347.3,2.9874]
[1721044985519,2.91142558,3347.6,3347.4,3.05564713]
[1721044985745,2.2862,3347.6,3347.5,2.9873]
[1721044986078,2.3519686,3347.6,3347.5,6.04273222]
[1721044986345,2.2862,3347.6,3347.5,6.04273222]
[1721044986734,2.35196133,3347.6,3347.5,6.04273222]
[1721044987127,2.2862,3347.6,3347.5,6.04273222]
[1721044988428,2.2862,3347.6,3347.5,3.05543222]
[1721044989338,2.2862,3347.6,3347.5,6.04273222]
[1721044990079,2.2862,3347.6,3347.5,3.05543222]
[1721044990280,2.2862,3347.6,3347.5,6.04273222]
[1721044990484,2.3215,3348.0,3347.8,2.98702]
[1721044990981,2.3215,3348.0,3347.9,0.06783855]
[1721044991390,2.3215,3348.0,3347.9,3.05477855]
[1721044991549,2.3215,3348.0,3347.9,6.04171855]
[1721044992184,2.3211,3348.5,3348.1,2.98669]
[1721044992561,2.709033,3348.5,3348.2,0.0667563]
[1721044992769,0.06556806,3348.4,3348.2,0.0667563]
[1721044992979,0.06556806,3348.4,3346.2,2.98841]
[1721044992980,2.3211,3347.5,3346.2,2.98841]
[1721044993175,0.62330335,3347.2,3346.2,2.8]
[1721044993376,2.3211,3346.7,3345.8,2.98881]
[1721044993604,0.13821301,3346.6,3345.8,2.98881]
[1721044993785,0.07471438,3346.6,3345.8,2.98881]
[1721044994096,0.47012166,3346.6,3345.2,7.41]
[1721044994276,1.59156398,3346.6,3345.6,2.98899]
[1721044994596,0.06370168,3346.5,3345.6,2.98899]
[1721044994752,0.07471931,3346.5,3345.6,2.98899]
[1721044994975,0.39540728,3346.6,3345.7,2.98882]
[1721044995417,0.39540728,3346.6,3345.8,5.98881]
[1721044995577,0.39540728,3346.6,3345.9,2.98871]
[1721044995919,2.3211,3346.7,3346.0,5.98862]
[1721044996140,0.06367955,3346.6,3346.0,5.98862]
[1721044996424,2.3546,3347.1,3346.5,2.98818]
[1721044997482,2.3546,3347.1,3346.3,2.98836]
[1721044997671,0.79582678,3347.0,3346.4,3.0]
[1721044997869,0.92109369,3347.0,3346.4,3.0]
[1721044998111,0.06365823,3346.9,3346.4,3.0]
[1721044998310,0.92131434,3347.0,3346.4,3.0]
[1721044998474,0.0636548,3346.9,3346.4,3.0]
[1721044998673,0.49861032,3346.9,3346.4,3.0]
[1721044998914,0.43495552,3346.9,3346.4,3.0]
[1721044999087,0.07470567,3346.8,3346.4,3.0]
[1721044999414,0.43495552,3346.9,3346.0,5.98864]
[1721044999720,0.92131434,3347.0,3346.3,2.98837]
[1721045000010,2.978124,3347.1,3346.4,3.0]
[1721045000332,2.3546,3347.1,3346.4,5.98828]
[1721045000527,2.3546,3347.1,3346.8,2.98786]
[1721045001031,2.3546,3347.1,3346.9,0.05208589]
[1721045001313,0.935286,3347.6,3346.9,0.05208589]
[1721045001314,2.2846,3347.5,3346.9,3.03989589]
[1721045001486,2.2846,3347.5,3347.0,5.98771]
[1721045001878,2.2846,3347.5,3347.1,0.05192415]
[1721045002513,2.2846,3347.5,3347.2,0.05185087]
[1721045002889,2.2846,3347.5,3347.0,5.98771]
[1721045003093,2.2846,3347.5,3347.3,0.0517776]
[1721045003413,2.2846,3347.5,3347.0,5.98771]
[1721045003589,2.2846,3347.5,3347.4,0.05170434]
[1721045003784,2.34816503,3347.5,3347.0,5.98771]
[1721045004105,2.2846,3347.5,3347.0,5.98771]
[1721045004323,2.2846,3347.5,3347.1,0.05192415]
[1721045004672,2.2846,3347.5,3347.0,5.98771]
[1721045004926,2.2846,3347.5,3347.2,0.05185087]
[1721045005104,2.2846,3347.5,3347.1,0.05192415]
[1721045005419,2.2846,3347.5,3347.0,5.98771]
[1721045005420,2.2846,3347.5,3347.3,0.0517776]
[1721045005604,2.2846,3347.5,3347.2,0.05185087]
[1721045005815,2.2846,3347.5,3347.0,5.98771]